bitfinex/quotes_ETHUSD_20220120
["timestamp","ask_amount","ask_price","bid_price","bid_amount"]
[1642655395744,0.0065164,3128.8,3128.5,1.70600423]
[1642655395943,2.0,3129.1,3128.5,2.70494547]
[1642655395944,0.00594798,3128.7,3128.5,2.70494547]
[1642655396344,2.0,3129.1,3128.6,6.1379456]
[1642655396544,2.0,3129.1,3128.7,1.6380588]
[1642655396744,0.00765325,3129.0,3128.8,0.79892]
[1642655396945,0.00765325,3129.0,3128.8,1.11862]
[1642655397214,0.00708483,3128.9,3128.8,1.11862]
[1642655397408,0.00708483,3128.9,3128.8,3.96862]
[1642655397603,0.00708483,3128.9,3128.8,4.96862]
[1642655398003,0.00708483,3128.9,3128.8,4.99963331]
[1642655398608,0.00708483,3128.9,3128.8,5.12743331]
[1642655399007,0.00708483,3128.9,3128.8,5.76656061]
[1642655399407,0.00708483,3128.9,3128.8,5.77394904]
[1642655401436,0.00708483,3128.9,3128.8,5.80903126]
[1642655401641,0.00708483,3128.9,3128.8,2.92394904]
[1642655402645,2.0,3129.1,3128.9,4.64769]
[1642655402843,2.0,3129.1,3128.9,5.24769]
[1642655403046,3.1499,3130.1,3129.3,0.6390398]
[1642655403246,3.1499,3130.1,3129.5,0.7988]
[1642655403444,3.1499,3130.1,3129.6,0.3]
[1642655403445,0.00568423,3129.9,3129.6,0.3]
[1642655403844,0.00511581,3129.8,3129.7,2.82143705]
[1642655404043,0.00511581,3129.8,3129.7,3.12143705]
[1642655404447,0.00511581,3129.8,3129.7,3.12501689]
[1642655406887,0.00511581,3129.8,3129.7,3.44471689]
[1642655409447,0.00511581,3129.8,3129.7,3.45206635]
[1642655411347,2.72421897,3129.8,3129.7,3.45206635]
[1642655412486,2.72421897,3129.8,3129.7,0.6306293]
[1642655412686,2.7233285,3129.8,3129.7,0.9306293]
[1642655412885,2.7233285,3129.8,3129.7,0.6306293]
[1642655412886,5.15689583,3129.8,3129.7,0.6306293]
[1642655413286,5.15094041,3129.8,3129.7,0.3306293]
[1642655413490,2.7233285,3129.8,3129.7,0.3306293]
[1642655413692,5.11159396,3129.8,3129.7,0.3306293]
[1642655414092,2.7233285,3129.8,3129.7,0.3306293]
[1642655414492,2.7233285,3129.8,3129.7,0.6306293]
[1642655414493,5.11986015,3129.8,3129.7,0.6306293]
[1642655414692,5.11986015,3129.8,3129.7,0.3306293]
[1642655414893,5.11986015,3129.8,3129.7,0.6306293]
[1642655415293,6.94121666,3129.8,3129.7,0.6306293]
[1642655417451,1.10489836,3129.6,3128.8,1.1511]
[1642655417651,1.10489836,3129.6,3128.6,0.7670603]
[1642655417652,0.01229039,3129.1,3128.6,0.7670603]
[1642655417852,0.01229039,3129.1,3128.9,0.00089047]
[1642655418255,0.01229039,3129.1,3128.8,0.0014589]
[1642655418452,0.01229039,3129.1,3128.6,0.4278]
[1642655418453,0.01229039,3129.1,3128.7,2.97860756]
[1642655418652,0.01229039,3129.1,3128.7,3.57860756]
[1642655418852,0.01229039,3129.1,3128.8,0.0014589]
[1642655419253,2.71957745,3129.0,3128.8,0.0014589]
[1642655420288,0.01229039,3129.1,3128.8,0.0014589]
[1642655420488,2.71927288,3129.0,3128.8,0.0014589]
[1642655421890,0.01229039,3129.1,3128.8,0.0014589]
[1642655422390,2.71926429,3129.0,3128.8,0.0014589]
[1642655422792,2.41727949,3129.3,3128.8,0.0014589]
[1642655422997,2.71925188,3129.2,3128.8,0.0014589]
[1642655423198,2.72006668,3129.2,3128.8,0.0014589]
[1642655424645,2.72006668,3129.2,3129.0,0.00739084]
[1642655429495,2.72006668,3129.2,3129.0,0.00382745]
[1642655431539,8.18291324,3129.1,3129.0,0.00382745]
[1642655431741,11.02996512,3129.1,3129.0,0.00382745]
[1642655431941,6.32996512,3129.1,3129.0,0.00382745]
[1642655433846,4.00655188,3129.1,3129.0,0.00382745]
[1642655434447,4.00655188,3129.1,3128.9,0.00742528]
[1642655434691,2.71925188,3129.0,3128.9,0.00742528]
[1642655435092,3.87875188,3129.0,3128.9,0.00742528]
[1642655435492,2.87875188,3129.0,3128.9,1.30897208]
[1642655436696,2.71925188,3129.0,3128.9,1.30897208]
[1642655436895,0.5946148,3129.2,3128.9,1.90897208]
[1642655436896,2.71925188,3129.1,3128.9,1.90897208]
[1642655437193,0.5946148,3129.2,3128.9,1.90897208]
[1642655437194,2.71925188,3129.0,3128.9,1.90897208]
[1642655437595,2.71925188,3129.1,3128.9,1.90897208]
[1642655437795,0.4668148,3129.2,3128.9,1.90897208]
[1642655437796,2.71925188,3129.0,3128.9,0.60742528]
[1642655438095,2.71925188,3129.0,3128.9,0.30655442]
[1642655438295,2.71925188,3129.1,3128.9,0.30655442]
[1642655438748,2.71925188,3129.1,3128.9,0.00742528]
[1642655438749,6.13484626,3129.0,3128.9,0.00742528]
[1642655438952,10.47959814,3129.0,3128.9,0.00742528]
[1642655439150,12.07189015,3129.0,3128.9,0.00742528]
[1642655439348,7.89475188,3129.0,3128.9,0.00742528]
[1642655439548,11.63298874,3129.0,3128.9,0.00742528]
[1642655439751,15.71520784,3129.0,3128.9,0.00742528]
[1642655439949,15.84300784,3129.0,3128.9,0.00742528]
[1642655440450,16.84300784,3129.0,3128.9,0.00742528]
[1642655440651,14.33857098,3129.0,3128.9,0.00742528]
[1642655441456,0.00798208,3128.8,3127.4,0.1278]
[1642655441652,4.78818642,3128.7,3127.4,0.1278]
[1642655441952,5.65714896,3128.6,3127.5,0.0073895]
[1642655442193,3.18525188,3128.5,3127.5,0.0073895]
[1642655442394,6.4410371,3128.4,3127.7,1.50083963]
[1642655442595,6.4410371,3128.4,3127.5,0.0073895]
[1642655442596,4.34475188,3128.3,3127.5,0.0073895]
[1642655442795,4.34475188,3128.3,3127.8,0.00568423]
[1642655442796,5.22368874,3128.2,3127.8,0.00568423]
[1642655442996,3.18525188,3128.1,3127.8,0.00568423]
[1642655443195,2.71925188,3128.0,3127.8,0.00568423]
[1642655443394,4.566,3127.9,3127.8,0.00568423]
[1642655443597,8.43387734,3127.9,3127.3,0.00852635]
[1642655443798,2.71925188,3127.8,3127.3,0.00852635]
[1642655443999,3.18525188,3127.8,3127.3,0.00852635]
[1642655444199,0.466,3127.8,3127.3,0.00852635]
[1642655444398,2.72003179,3127.7,3127.3,0.00852635]
[1642655444598,0.466,3127.8,3127.3,0.00852635]
[1642655445100,0.16374764,3128.1,3127.3,0.00852635]
[1642655445298,2.71987919,3128.0,3127.3,0.00852635]
[1642655445501,2.71987919,3128.0,3127.3,0.13632635]
[1642655445972,2.71987919,3128.0,3127.4,0.00795793]
[1642655446165,0.00424764,3128.1,3127.4,0.00795793]
[1642655447164,1.11787391,3128.0,3127.4,0.00795793]
[1642655449570,1.11787391,3128.0,3127.6,0.00486722]
[1642655449994,1.11787391,3128.0,3127.7,0.00625266]
[1642655450199,1.24567391,3128.0,3127.7,0.00625266]
[1642655450401,2.72001987,3127.9,3127.7,0.00625266]
[1642655450601,3.2278,3127.8,3127.7,0.00625266]
[1642655450800,0.1278,3127.8,3127.7,0.00625266]
[1642655451201,0.1278,3127.9,3127.7,0.00625266]
[1642655451599,2.44328057,3127.9,3127.7,0.00625266]
[1642655451801,0.1278,3127.9,3127.7,0.00625266]
[1642655452198,2.55953292,3127.9,3127.7,0.00625266]
[1642655452400,2.72014641,3127.8,3127.7,0.00625266]
[1642655452598,2.55953292,3127.9,3127.7,0.00625266]
[1642655452802,0.1278,3127.9,3127.7,0.00625266]
[1642655453203,0.12691746,3127.9,3127.7,0.00625266]
[1642655454458,0.13134053,3127.9,3127.8,0.00485801]
[1642655454855,0.13134053,3127.9,3127.8,0.01054224]
[1642655454856,2.85141765,3127.9,3127.8,0.01054224]
[1642655455056,5.17902708,3127.9,3127.8,0.01054224]
[1642655456057,6.80452708,3127.9,3127.8,0.01054224]
[1642655461746,13.23503115,3127.9,3127.8,0.01054224]
[1642655462351,10.88503115,3127.9,3127.8,0.01054224]
[1642655463449,8.55742172,3127.9,3127.8,0.01054224]
[1642655464899,4.47691765,3127.9,3127.8,0.01054224]
[1642655465197,8.55754159,3127.9,3127.8,0.01054224]
[1642655466698,23.20691765,3127.9,3127.8,0.01054224]
[1642655467299,27.28749691,3127.9,3127.8,0.01054224]
[1642655467500,8.55749691,3127.9,3127.8,0.01054224]
[1642655467699,4.47691765,3127.9,3127.8,0.01054224]
[1642655468298,4.81066781,3127.9,3127.8,0.01054224]
[1642655472996,8.89124707,3127.9,3127.8,0.01054224]
[1642655474102,4.81066781,3127.9,3127.8,0.01054224]
[1642655475955,8.89124855,3127.9,3127.8,0.01054224]
[1642655476647,4.81066781,3127.9,3127.8,0.01054224]
[1642655477049,4.81066781,3127.9,3127.8,0.00957483]
[1642655479552,4.68375035,3127.9,3127.8,0.00957483]
[1642655479803,4.35000019,3127.9,3127.8,0.00957483]
[1642655480006,4.68400279,3127.9,3127.8,0.00957483]
[1642655480208,4.35000019,3127.9,3127.8,0.00957483]
[1642655481307,3.35000019,3127.9,3127.8,0.00957483]
[1642655482912,3.35000019,3127.9,3127.8,0.04038585]
[1642655484752,3.19050019,3127.9,3127.8,0.03470162]
[1642655487402,2.72450019,3127.9,3127.8,0.03470162]
[1642655493461,2.85133728,3127.9,3127.8,0.03470162]
[1642655494458,2.85219789,3127.9,3127.8,0.03470162]
[1642655499451,2.84787712,3127.9,3127.8,0.03470162]
[1642655501051,4.00737712,3127.9,3127.8,0.03470162]
[1642655505959,4.35,3127.8,3126.8,1.4778]
[1642655506152,1.35107873,3127.0,3126.9,0.3]
[1642655506351,2.84797712,3127.7,3126.9,0.31080004]
[1642655506352,2.72007712,3127.6,3126.9,0.31080004]
[1642655506552,2.72007712,3127.6,3126.9,0.01080004]
[1642655506553,2.84797712,3127.5,3126.9,0.01080004]
[1642655506758,2.84797712,3127.5,3127.0,0.01023162]
[1642655506759,2.72007712,3127.4,3127.0,0.01023162]
[1642655506956,3.72007712,3127.4,3127.0,0.01023162]
[1642655507161,2.72007712,3127.3,3126.5,0.01307374]
[1642655507356,1.21252737,3127.1,3126.5,0.01307374]
[1642655507555,2.72007712,3127.0,3126.5,0.01307374]
[1642655509558,0.00398704,3127.0,3126.7,0.00589571]
[1642655510004,0.00398704,3127.0,3126.8,0.01136847]
[1642655512906,0.0164676,3126.9,3126.8,0.01136847]
[1642655514457,0.01873314,3126.9,3126.8,0.01881255]
[1642655517311,0.01873314,3126.9,3126.8,1.19824849]
[1642655519007,0.01873314,3126.9,3126.8,3.45966399]
[1642655519208,0.01873314,3126.9,3126.8,1.19824849]
[1642655519708,0.01873314,3126.9,3126.8,0.01881255]
[1642655525110,0.01873314,3126.9,3126.8,2.514696]
[1642655526210,0.01873314,3126.9,3126.8,0.01881255]
[1642655529861,0.01780592,3126.9,3126.8,0.01881255]
[1642655530062,0.01780592,3126.9,3126.8,2.34257102]
[1642655530264,0.01780592,3126.9,3126.8,0.01881255]
[1642655530864,0.01780592,3126.9,3126.8,2.3158782]
[1642655531064,0.01780592,3126.9,3126.8,0.01881255]
[1642655531263,0.01780592,3126.9,3126.8,2.28153116]
[1642655531463,0.01780592,3126.9,3126.8,0.01881255]
[1642655534310,2.73819737,3126.9,3126.8,0.01881255]
[1642655536152,2.73812707,3126.9,3126.8,0.01881255]
[1642655540103,2.73812707,3126.9,3126.8,0.00744408]
[1642655544457,2.73812707,3126.9,3126.6,0.30744408]
[1642655544658,0.01780592,3126.9,3126.6,0.30744408]
[1642655544857,0.01780592,3126.9,3126.7,0.01193689]
[1642655549409,0.01780592,3126.9,3126.8,0.00744408]
[1642655549710,0.01780592,3126.9,3126.8,0.01881255]
[1642655551165,2.73815848,3126.9,3126.8,0.01881255]
[1642655551861,4.81584044,3126.9,3126.8,0.01881255]
[1642655552063,5.95363606,3126.9,3126.8,0.01881255]
[1642655552460,3.86605848,3126.9,3126.8,0.01881255]
[1642655552860,6.03577945,3126.9,3126.8,0.01881255]
[1642655553061,6.19527945,3126.9,3126.8,0.01881255]
[1642655555505,6.66127945,3126.9,3126.8,0.01881255]
[1642655555708,4.49155848,3126.9,3126.8,0.01881255]
[1642655556007,6.58485822,3126.9,3126.8,0.01881255]
[1642655556809,6.58485822,3126.9,3125.7,0.1279]
[1642655556810,4.7,3126.8,3125.7,0.1279]
[1642655557010,4.7,3126.8,3125.1,2.63233686]
[1642655557011,22.87574256,3126.7,3125.1,2.63233686]
[1642655557209,22.87574256,3126.7,3125.8,0.00568423]
[1642655557210,6.92873428,3126.6,3125.8,0.00568423]
[1642655557411,3.34585256,3126.5,3125.8,0.00568423]
[1642655557610,5.08857005,3126.4,3125.8,0.00568423]
[1642655557813,1.3500378,3125.5,3125.0,0.01023162]
[1642655559459,1.3500378,3125.5,3125.2,0.00573054]
[1642655559460,1.35402757,3125.5,3125.2,0.00573054]
[1642655559859,1.35402757,3125.5,3125.3,0.00852635]
[1642655561062,0.00398977,3125.5,3125.3,0.00852635]
[1642655561661,0.00398977,3125.5,3125.3,0.80843635]
[1642655562062,0.00398977,3125.5,3125.4,0.00795793]
[1642655562907,0.01482695,3125.5,3125.4,0.00795793]
[1642655563105,0.01482695,3125.5,3125.3,0.00852635]
[1642655564610,0.01482695,3125.5,3125.4,0.0057121]
[1642655565011,0.01482695,3125.5,3125.4,0.01367003]
[1642655576966,1.19335011,3125.5,3125.4,0.01367003]
[1642655581561,1.19235366,3125.5,3125.4,0.01367003]
[1642655584466,1.18836389,3125.5,3125.4,0.01218292]
[1642655589065,0.00984073,3125.5,3125.4,1.38171659]
[1642655589264,0.00984073,3125.5,3125.4,3.7388575]
[1642655589466,0.00984073,3125.5,3125.4,2.36932383]
[1642655589666,0.00984073,3125.5,3125.4,0.01218292]
[1642655592406,0.13774073,3125.5,3125.4,0.01218292]
[1642655592806,0.13677655,3125.5,3125.4,0.01218292]
[1642655593007,0.1279,3125.5,3125.4,0.01218292]
[1642655594910,0.1279,3125.5,3125.4,0.00422499]
[1642655595962,1.32970374,3125.6,3125.4,0.00422499]
[1642655596356,1.32970374,3125.6,3125.5,0.0073895]
[1642655596856,4.05133593,3125.6,3125.5,0.0073895]
[1642655598862,1.32970374,3125.6,3125.5,0.0073895]
[1642655599463,1.32970374,3125.6,3125.5,0.01161074]
[1642655599707,4.0512493,3125.6,3125.5,0.01161074]
[1642655613567,4.05021536,3125.6,3125.5,0.01161074]
[1642655615911,2.72154556,3125.6,3125.5,0.01161074]
[1642655616309,2.72154556,3125.7,3125.5,0.31161074]
[1642655616510,2.72154556,3125.6,3125.5,0.01161074]
[1642655616813,15.002,3125.8,3125.6,0.00682108]
[1642655618864,3.55,3125.7,3125.6,0.00682108]
[1642655619265,19.08418491,3125.8,3125.6,0.00682108]
[1642655619464,15.1299,3125.8,3125.7,0.00421374]
[1642655619964,15.1299,3125.8,3125.7,0.0104664]
[1642655621264,15.002,3125.8,3125.7,0.0104664]
[1642655631718,17.72339765,3125.8,3125.7,0.0104664]
[1642655633474,17.72249927,3125.8,3125.7,0.0104664]
[1642655636476,17.85039927,3125.8,3125.7,0.0104664]
[1642655639718,17.72249927,3125.8,3125.7,0.0104664]
[1642655644084,17.45559927,3125.8,3125.7,0.0104664]
[1642655644285,10.22439765,3125.8,3125.7,0.0104664]
[1642655645414,10.22439765,3125.8,3125.7,1.26130238]
[1642655646213,6.15544265,3125.8,3125.7,1.26130238]
[1642655647017,6.15544265,3125.8,3125.7,1.29207808]
[1642655648461,6.15544265,3125.8,3125.7,1.26130238]
[1642655648666,6.15544265,3125.8,3125.7,1.29709183]
[1642655649468,6.15544265,3125.8,3125.7,1.26130238]
[1642655649867,6.15544265,3125.8,3125.7,1.25504972]
[1642655650472,2.72139765,3125.8,3125.7,1.25504972]
[1642655650670,2.72139765,3125.9,3125.7,1.25504972]
[1642655650870,2.72139765,3125.9,3125.7,0.00421374]
[1642655651071,2.72139765,3125.9,3125.8,0.00568423]
[1642655651772,2.72139765,3126.0,3125.8,0.00568423]
[1642655651972,2.72139765,3125.9,3125.8,0.00568423]
[1642655652222,4.01492206,3126.0,3125.8,0.00568423]
[1642655652610,2.72139765,3125.9,3125.8,0.00568423]
[1642655654620,2.72139765,3125.9,3125.8,0.00989422]
[1642655655620,2.72139765,3126.0,3125.8,0.00989422]
[1642655655821,2.72139765,3125.9,3125.8,0.00989422]
[1642655656073,7.0492,3126.1,3125.8,0.00420999]
[1642655656074,2.72139765,3126.0,3125.8,0.00420999]
[1642655656273,2.72139765,3126.0,3125.8,1.09839448]
[1642655656475,2.72139765,3126.0,3125.9,0.00511581]
[1642655656679,2.72139765,3126.0,3125.9,2.25920434]
[1642655656876,2.72139765,3126.5,3125.9,0.13301581]
[1642655657077,2.72139765,3126.4,3126.0,0.79977]
[1642655657276,2.72139765,3126.3,3126.0,0.80431738]
[1642655657479,2.72139765,3126.2,3126.1,1.47348236]
[1642655657876,2.72139765,3126.5,3126.1,1.47348236]
[1642655658077,2.72139765,3126.5,3126.4,1.20824497]
[1642655658277,2.72139765,3126.5,3126.4,0.3]
[1642655658476,2.72139765,3126.5,3126.4,0.60227369]
[1642655658877,2.72139765,3126.5,3126.4,0.30227369]
[1642655659077,2.72139765,3126.5,3126.4,0.00227369]
[1642655659480,3.434,3126.4,3126.2,0.00341054]
[1642655659721,2.72139765,3126.3,3126.2,0.00341054]
[1642655664365,2.84929765,3126.3,3126.2,0.00341054]
[1642655664565,2.84929765,3126.3,3126.2,0.00760553]
[1642655668314,4.06964314,3126.3,3126.2,0.00760553]
[1642655668519,5.06964314,3126.3,3126.2,0.00760553]
[1642655668717,4.94081682,3126.3,3126.2,0.00760553]
[1642655669419,5.10031682,3126.3,3126.2,0.00760553]
[1642655671569,0.79923631,3126.0,3125.1,0.1279]
[1642655671769,0.0124196,3125.6,3125.1,0.1279]
[1642655671968,0.5939,3125.5,3125.2,0.00568423]
[1642655672570,1.75559876,3125.5,3125.2,0.00568423]
[1642655672767,1.91509876,3125.5,3125.2,0.00568423]
[1642655673569,2.91509876,3125.5,3125.2,0.00568423]
[1642655674171,3.71528876,3125.5,3125.2,0.00568423]
[1642655674570,3.71528876,3125.5,3125.4,0.00380549]
[1642655675013,3.71528876,3125.5,3125.4,0.00835288]
[1642655675911,7.79787871,3125.5,3125.4,0.00835288]
[1642655677415,7.66997871,3125.5,3125.4,0.00835288]
[1642655678471,6.50827995,3125.5,3125.4,0.00835288]
[1642655678667,2.42569,3125.5,3125.4,0.00835288]
[1642655679067,1.6255,3125.5,3125.4,0.00835288]
[1642655679269,0.466,3125.5,3125.4,0.00835288]
[1642655679568,1.0,3125.6,3125.4,1.22364356]
[1642655679768,1.1595,3125.7,3125.4,1.52364356]
[1642655679968,1.1595,3125.7,3125.5,0.00397896]
[1642655684221,5.116,3125.6,3125.5,0.00397896]
[1642655684621,5.116,3125.6,3125.5,0.30397896]
[1642655684822,5.116,3125.6,3125.5,0.00397896]
[1642655685222,1.10765122,3125.3,3125.0,0.00682108]
[1642655686471,0.80024,3125.4,3125.0,0.00682108]
[1642655687678,0.1279,3125.5,3125.0,0.00682108]
[1642655687876,1.67670254,3125.5,3125.0,0.00682108]
[1642655688077,2.67670254,3125.5,3125.0,0.00682108]
[1642655688480,1.67670254,3125.5,3125.0,0.00682108]
[1642655688877,3.5222381,3125.4,3125.0,0.00682108]
[1642655689079,2.7220081,3125.3,3125.0,0.00682108]
[1642655689579,2.7220081,3125.3,3125.2,0.00568274]
[1642655692317,0.466,3125.6,3125.2,0.00568274]
[1642655692720,0.466,3125.6,3125.3,0.00511581]
[1642655693572,1.72581091,3125.6,3125.3,0.00511581]
[1642655694169,0.466,3125.6,3125.3,0.00511581]
[1642655694570,0.466,3125.6,3125.5,0.00566399]
[1642655694970,3.166,3125.6,3125.5,0.00964295]
[1642655695374,4.61685006,3125.6,3125.5,0.00964295]
[1642655695870,1.91685006,3125.6,3125.5,0.00964295]
[1642655696572,0.466,3125.6,3125.5,0.00964295]
[1642655697223,0.466,3125.6,3125.5,0.30964295]
[1642655697826,0.466,3125.6,3125.5,0.04024338]
[1642655699430,3.9534,3125.8,3125.5,0.04024338]
[1642655699730,3.9534,3125.8,3125.6,0.00341054]
[1642655700331,3.9534,3125.8,3125.6,0.004612]
[1642655700732,3.9534,3125.8,3125.7,0.00284212]
[1642655700993,3.9534,3125.8,3125.7,0.00404358]
[1642655702384,13.25559893,3126.1,3125.9,1.49487347]
[1642655702584,12.06709893,3126.1,3125.9,1.49607493]
[1642655702785,7.8249,3126.1,3126.0,0.00113684]
[1642655702987,7.8249,3126.1,3126.0,0.0023383]
[1642655703188,11.90759893,3126.1,3126.0,0.0023383]
[1642655703988,12.06753893,3126.1,3126.0,0.0023383]
[1642655704587,12.06753893,3126.1,3126.0,0.00797104]
[1642655705620,12.06746642,3126.1,3126.0,0.00797104]
[1642655706625,12.06746642,3126.1,3125.7,0.03076386]
[1642655706626,18.74873096,3125.9,3125.7,0.03076386]
[1642655706923,10.17677642,3125.8,3125.7,0.03196532]
[1642655707124,16.71019878,3125.8,3125.7,0.03196532]
[1642655707322,16.71019878,3125.8,3125.7,0.0336706]
[1642655707323,36.44019878,3125.8,3125.7,0.0336706]
[1642655707723,39.46509878,3125.8,3125.7,0.0336706]
[1642655707923,41.15083484,3125.8,3125.7,0.00290674]
[1642655708574,38.00401642,3125.8,3125.7,0.00290674]
[1642655708776,39.62380978,3125.8,3125.7,0.00290674]
[1642655709374,4.7,3125.7,3124.8,0.3]
[1642655709575,19.5303,3125.5,3124.7,0.31]
[1642655709873,23.27862642,3125.4,3124.9,0.00454738]
[1642655710074,19.196,3125.4,3124.9,0.00454738]
[1642655710475,1.33748371,3125.2,3124.9,0.30454738]
[1642655710774,0.80032,3125.1,3125.0,0.00397896]
[1642655712523,3.5224392,3125.1,3125.0,0.00397896]
[1642655714428,6.21996424,3125.1,3125.0,0.01111365]
[1642655714628,6.68596424,3125.1,3125.0,0.01111365]
[1642655714829,6.90800273,3125.1,3125.0,0.01111365]
[1642655715029,7.13004122,3125.1,3125.0,0.01111365]
[1642655715630,25.86004122,3125.1,3125.0,0.01111365]
[1642655716669,27.47983458,3125.1,3125.0,0.01111365]
[1642655716866,18.73,3124.9,3124.7,0.01]
[1642655717069,24.79370363,3124.8,3124.7,0.01]
[1642655717467,6.06370363,3124.8,3124.7,0.01]
[1642655718069,3.3480592,3124.8,3124.7,0.01]
[1642655718468,5.87251494,3124.8,3124.7,0.01]
[1642655718672,3.3480592,3124.8,3124.7,0.01]
[1642655720122,3.57009769,3124.8,3124.7,0.01]
[1642655720320,3.79213618,3124.8,3124.7,0.01]
[1642655720722,5.70369094,3125.4,3124.8,4.05]
[1642655720923,1.0,3125.5,3124.9,2.50039282]
[1642655721130,0.00113685,3125.2,3125.0,1.38340051]
[1642655721328,0.01873096,3125.9,3125.1,5.85039282]
[1642655721527,0.01873096,3125.9,3125.2,5.0]
[1642655721725,0.01873096,3125.9,3125.2,0.33671672]
[1642655721726,0.00113684,3125.4,3125.2,0.33671672]
[1642655721930,0.01873096,3125.9,3125.3,2.61424209]
[1642655722125,0.01873096,3125.9,3125.3,5.14471407]
[1642655722328,0.01873096,3125.9,3125.4,3.50039282]
[1642655722329,0.0022737,3125.8,3125.4,3.50039282]
[1642655722528,0.01873096,3125.9,3125.5,4.7]
[1642655722729,0.01873096,3125.9,3125.5,4.73468973]
[1642655722928,0.85218366,3126.1,3125.6,6.4160418]
[1642655723128,0.85218366,3126.1,3125.7,0.1279]
[1642655723329,0.00113685,3126.0,3125.7,0.1279]
[1642655725074,1.0,3126.3,3125.7,1.72741]
[1642655725274,1.0,3126.3,3126.1,1.48720982]
[1642655725577,0.00113684,3126.2,3126.1,2.08720982]
[1642655726173,3.434,3126.4,3126.2,3.94926]
[1642655726379,3.434,3126.4,3126.3,8.05061878]
[1642655726575,0.1279,3127.5,3126.4,4.7]
[1642655726773,5.49889336,3127.6,3126.5,2.6445947]
[1642655726974,3.8791,3127.6,3126.5,3.98075784]
[1642655727222,0.00738951,3127.5,3127.2,2.37548686]
[1642655727419,0.00738951,3127.5,3127.2,2.97548686]
[1642655727618,0.00682108,3127.4,3127.2,2.97548686]
[1642655728020,6.90088847,3127.6,3127.2,2.97548686]
[1642655728021,0.00625266,3127.3,3127.2,2.97548686]
[1642655729827,0.00625266,3127.3,3127.2,0.63665911]
[1642655730025,0.00625266,3127.3,3127.2,0.33665911]
[1642655730228,0.00625266,3127.3,3127.0,0.33505741]
[1642655730425,0.00625266,3127.3,3127.0,0.6]
[1642655730626,0.00568424,3127.2,3127.0,0.33312055]
[1642655730980,6.91678071,3127.6,3127.1,1.33795329]
[1642655731175,5.29698735,3127.6,3127.1,1.33795329]
[1642655731374,0.00738951,3127.5,3127.1,1.33795329]
[1642655731774,0.00682108,3127.4,3127.1,1.33795329]
[1642655732176,0.00625266,3127.3,3127.1,1.33795329]
[1642655732574,0.00568424,3127.2,3127.1,1.33795329]
[1642655732775,0.00568424,3127.2,3127.1,1.30529755]
[1642655735527,0.00568424,3127.2,3127.0,0.3]
[1642655735727,0.13358424,3127.2,3127.0,0.3]
[1642655735928,0.00511581,3127.1,3126.7,0.1279]
[1642655736129,0.1279,3127.0,3126.7,0.1279]
[1642655736326,0.13244739,3127.0,3126.7,0.1279]
[1642655736527,0.00397897,3126.9,3126.8,1.23384394]
[1642655736929,0.00397897,3126.9,3126.8,1.53384394]
[1642655738029,0.00397897,3126.9,3126.8,1.54769333]
[1642655738232,0.00397897,3126.9,3126.8,1.58157186]
[1642655738488,0.00397897,3126.9,3126.8,0.31384939]
[1642655740786,2.72501222,3126.9,3126.8,0.31384939]
[1642655743019,2.72501222,3126.9,3126.7,0.46522258]
[1642655743224,2.72103325,3126.8,3126.7,0.46522258]
[1642655743421,2.72444379,3126.8,3126.7,0.46522258]
[1642655743621,0.00341054,3126.8,3126.7,0.46522258]
[1642655743820,0.00341054,3126.8,3126.7,0.33732258]
[1642655744227,0.00341054,3126.8,3126.7,0.3]
[1642655744623,2.72444379,3126.8,3126.5,0.3]
[1642655744827,2.72444379,3126.8,3126.3,0.3365269]
[1642655745023,0.00284212,3126.7,3126.3,0.3365269]
[1642655745227,0.00284212,3126.7,3126.3,1.79848381]
[1642655745425,0.0022737,3126.6,3126.3,1.79848381]
[1642655745826,0.00170527,3126.5,3126.3,1.79848381]
[1642655746269,1.01276171,3127.0,3126.3,1.79848381]
[1642655746270,0.00113685,3126.4,3126.3,1.79848381]
[1642655748875,0.00113685,3126.4,3126.3,4.10483216]
[1642655749074,0.00113685,3126.4,3126.3,4.12722217]
[1642655749279,0.00113685,3126.4,3126.3,1.79848381]
[1642655750626,0.0002356,3126.4,3126.3,0.3365269]
[1642655751234,0.0002356,3126.4,3126.0,0.00165734]
[1642655751631,0.0002356,3126.4,3126.1,0.00146967]
[1642655751931,0.0002356,3126.4,3126.0,1.21882521]
[1642655752133,0.0002356,3126.4,3126.0,1.21735554]
[1642655752432,0.80088655,3126.3,3126.1,1.09884488]
[1642655752731,0.7997497,3126.3,3126.1,1.39884488]
[1642655753130,1.5995158,3126.5,3126.1,1.39884488]
[1642655753331,1.5995158,3126.5,3126.1,4.00416593]
[1642655753575,0.00170527,3126.4,3126.1,1.69884488]
[1642655753775,0.00170527,3126.4,3126.1,4.00856925]
[1642655753972,1.5995158,3126.5,3126.1,4.00856925]
[1642655753973,0.00113685,3126.3,3126.1,1.69884488]
[1642655754174,0.00113685,3126.3,3126.1,4.01427809]
[1642655754374,0.00170527,3126.4,3126.1,4.01427809]
[1642655754673,0.00113685,3126.3,3126.1,4.01427809]
[1642655754877,0.00113685,3126.3,3126.1,1.69884488]
[1642655755072,0.00170527,3126.4,3126.1,4.02116412]
[1642655755477,0.00113685,3126.3,3126.1,4.02116412]
[1642655755875,0.00170527,3126.4,3126.1,4.02116412]
[1642655756077,0.80143697,3126.4,3126.1,1.69884488]
[1642655756276,0.00113685,3126.3,3126.1,1.69884488]
[1642655757818,0.00113685,3126.3,3126.1,4.00425898]
[1642655758416,0.00113685,3126.3,3126.1,1.69884488]
[1642655758621,0.00113685,3126.3,3126.2,2.31280017]
[1642655759022,0.00113685,3126.3,3126.2,3.31280017]
[1642655759822,0.00113685,3126.3,3126.2,2.31280017]
[1642655760023,0.00113685,3126.3,3126.2,3.31280017]
[1642655760426,0.00113685,3126.3,3126.2,2.31280017]
[1642655763380,0.00113685,3126.3,3126.2,5.77247017]
[1642655764718,0.00113685,3126.3,3126.2,3.47247017]
[1642655767926,0.00113685,3126.3,3126.2,3.49896424]
[1642655770479,0.00113685,3126.3,3126.2,2.33929424]
[1642655770678,0.00113685,3126.3,3126.2,3.33929424]
[1642655771878,0.00113685,3126.3,3126.2,3.49896424]
[1642655776674,0.00024601,3126.3,3126.2,3.49896424]
[1642655776875,0.00024601,3126.3,3126.2,1.18616407]
[1642655777075,0.00024601,3126.3,3126.2,3.47345294]
[1642655778083,0.00024601,3126.3,3126.2,7.43833805]
[1642655778480,0.00024601,3126.3,3126.2,8.74043805]
[1642655778681,0.00024601,3126.3,3126.2,8.74523805]
[1642655778877,0.00024601,3126.3,3126.2,5.78863974]
[1642655779078,0.00024601,3126.3,3126.2,5.66703974]
[1642655780134,0.00024601,3126.3,3126.2,7.01423872]
[1642655780340,0.7992627,3127.7,3126.3,4.7]
[1642655780539,2.72004043,3127.6,3127.0,0.3311427]
[1642655780736,2.71996564,3127.5,3127.1,2.54111572]
[1642655780936,2.71996564,3127.4,3127.1,2.84111572]
[1642655781134,0.0073895,3127.6,3127.2,1.0]